fUSD/lending_fUSD_20250401
["ID","MTS","AMOUNT","RATE_DAILY","PERIOD"]
[356975276,1743512088284,-500.0,0.00049863,120]
[356975277,1743512088346,-500.0,0.00049863,120]
[356975278,1743512088407,-500.0,0.00049863,120]
[356975279,1743512088467,-500.0,0.00049863,120]
[356975280,1743512088526,-500.0,0.00049863,120]
[356975281,1743512088585,-2307.918016,0.00049863,120]
[356975282,1743512088642,-500.0,0.00049863,120]
[356975283,1743512088700,-2307.918016,0.00049863,120]
[356975284,1743512088760,-500.0,0.00049863,120]
[356975285,1743512088819,-2307.918016,0.00049863,120]
[356975286,1743512089016,-500.0,0.00049863,120]
[356975287,1743512089077,-2307.918016,0.00049863,120]
[356975288,1743512089140,-500.0,0.00049863,120]
[356975289,1743512089207,-500.0,0.00049863,120]
[356975290,1743512089270,-500.0,0.00049863,120]
[356975291,1743512089335,-500.0,0.00049863,120]
[356975292,1743512089400,-500.0,0.00049863,120]
[356975293,1743512089464,-500.0,0.00049863,120]
[356975294,1743512089525,-500.0,0.00049863,120]
[356975295,1743512089585,-345.5865456,0.00049863,120]
[356975296,1743512089645,-500.0,0.00049863,120]
[356975297,1743512089703,-500.0,0.00049863,120]
[356975298,1743512089761,-500.0,0.00049863,120]
[356975299,1743512089825,-500.0,0.00049863,120]
[356975300,1743512089883,-500.0,0.00049863,120]
[356975301,1743512089943,-500.0,0.00049863,120]
[356975302,1743512090004,-500.0,0.00049863,120]
[356975303,1743512090211,-500.0,0.00049863,120]
[356975304,1743512090275,-500.0,0.00049863,120]
[356975305,1743512090343,-500.0,0.00049863,120]
[356975306,1743512090406,-500.0,0.00049863,120]
[356975307,1743512090467,-500.0,0.00049863,120]
[356975308,1743512090525,-500.0,0.00049863,120]
[356975309,1743512090584,-500.0,0.00049863,120]
[356975310,1743512090643,-500.0,0.00049863,120]
[356975311,1743512090702,-500.0,0.00049863,120]
[356975312,1743512090761,-500.0,0.00049863,120]
[356975313,1743512090819,-500.0,0.00049863,120]
[356975314,1743512090872,-542.84635295,0.00049863,120]
[356975315,1743512090928,-557.02091923,0.00049863,120]
[356975316,1743512090986,-500.0,0.00049863,120]
[356975317,1743512091045,-500.0,0.00049863,120]
[356975318,1743512091105,-500.0,0.00049863,120]
[356975319,1743512091165,-500.0,0.00049863,120]
[356975320,1743512091354,-500.0,0.00049863,120]
[356975321,1743512091418,-500.0,0.00049863,120]
[356975322,1743512091479,-500.0,0.00049863,120]
[356975323,1743512091541,-500.0,0.00049863,120]
[356975324,1743512091602,-500.0,0.00049863,120]
[356975325,1743512091661,-500.0,0.00049863,120]
[356975326,1743512091719,-500.0,0.00049863,120]
[356975327,1743512091778,-500.0,0.00049863,120]
[356975328,1743512091836,-500.0,0.00049863,120]
[356975329,1743512091893,-500.0,0.00049863,120]
[356975330,1743512091953,-500.0,0.00049863,120]
[356975331,1743512092012,-500.0,0.00049863,120]
[356975332,1743512092070,-500.0,0.00049863,120]
[356975333,1743512092129,-500.0,0.00049863,120]
[356975334,1743512092187,-500.0,0.00049863,120]
[356975335,1743512092251,-500.0,0.00049863,120]
[356975336,1743512092310,-500.0,0.00049863,120]
[356975337,1743512092496,-500.0,0.00049863,120]
[356975338,1743512092556,-500.0,0.00049863,120]
[356975339,1743512092616,-500.0,0.00049863,120]
[356975340,1743512092673,-500.0,0.00049863,120]
[356975341,1743512092730,-500.0,0.00049863,120]
[356975342,1743512092787,-500.0,0.00049863,120]
[356975343,1743512092843,-500.0,0.00049863,120]
[356975344,1743512092897,-531.77751909,0.00049863,120]
[356975345,1743512092954,-500.0,0.00049863,120]
[356975346,1743512093011,-3774.06,0.00049863,120]
[356975347,1743512093066,-418.01183606,0.00049863,120]
[356975348,1743512093123,-500.0,0.00049863,120]
[356975349,1743512093182,-500.0,0.00049863,120]
[356975350,1743512093242,-500.0,0.00049863,120]
[356975351,1743512093305,-500.0,0.00049863,120]
[356975352,1743512093364,-603.03,0.00049863,120]
[356975353,1743512093424,-654.74,0.00049863,120]
[356975354,1743512093610,-500.0,0.00049863,120]
[356975355,1743512093669,-151.0,0.00049863,120]
[356975356,1743512093728,-151.0,0.00049863,120]
[356975357,1743512093787,-500.0,0.00049863,120]
[356975358,1743512093845,-500.0,0.00049863,120]
[356975359,1743512093904,-500.0,0.00049863,120]
[356975360,1743512093970,-500.0,0.00049863,120]
[356975361,1743512094031,-500.0,0.00049863,120]
[356975362,1743512094090,-500.0,0.00049863,120]
[356975363,1743512094148,-151.0,0.00049863,120]
[356975364,1743512094210,-151.0,0.00049863,120]
[356975365,1743512094270,-500.0,0.00049863,120]
[356975366,1743512094335,-500.0,0.00049863,120]
[356975367,1743512094399,-500.0,0.00049863,120]
[356975368,1743512094457,-500.0,0.00049863,120]
[356975369,1743512094517,-500.0,0.00049863,120]
[356975370,1743512094676,-500.0,0.00049863,120]
[356975371,1743512094737,-500.0,0.00049863,120]
[356975372,1743512094794,-500.0,0.00049863,120]
[356975373,1743512094851,-500.0,0.00049863,120]
[356975374,1743512094910,-500.0,0.00049863,120]
[356975375,1743512094969,-500.0,0.00049863,120]
[356975376,1743512095027,-606.24,0.00049863,120]
[356975377,1743512095085,-232.83269163,0.00049863,120]
[356975378,1743512095146,-500.0,0.00049863,120]
[356975379,1743512095209,-274.60077457,0.00049863,120]
[356975380,1743512095270,-500.0,0.00049863,120]
[356975381,1743512095331,-500.0,0.00049863,120]
[356975382,1743512095392,-500.0,0.00049863,120]
[356975383,1743512095454,-500.0,0.00049863,120]
[356975384,1743512095515,-517.6284549,0.00049863,120]
[356975385,1743512095573,-500.0,0.00049863,120]
[356975386,1743512095631,-500.0,0.00049863,120]
[356975387,1743512095787,-500.0,0.00049863,120]
[356975388,1743512095847,-500.0,0.00049863,120]
[356975389,1743512095908,-444.92494239,0.00049863,120]
[356975390,1743512095967,-500.0,0.00049863,120]
[356975391,1743512096027,-500.0,0.00049863,120]
[356975392,1743512096085,-582.82,0.00049863,120]
[356975393,1743512096141,-500.0,0.00049863,120]
[356975394,1743512096202,-500.0,0.00049863,120]
[356975395,1743512096266,-518.19,0.00049863,120]
[356975396,1743512096328,-537.29410668,0.00049863,120]
[356975397,1743512096389,-500.0,0.00049863,120]
[356975398,1743512096450,-500.0,0.00049863,120]
[356975399,1743512096510,-500.0,0.00049863,120]
[356975400,1743512096572,-500.0,0.00049863,120]
[356975401,1743512096633,-500.0,0.00049863,120]
[356975402,1743512096691,-500.0,0.00049863,120]
[356975403,1743512096747,-500.0,0.00049863,120]
[356975404,1743512096910,-151.0,0.00049863,120]
[356975405,1743512096971,-151.0,0.00049863,120]
[356975406,1743512097032,-500.0,0.00049863,120]
[356975407,1743512097092,-500.0,0.00049863,120]
[356975408,1743512097151,-500.0,0.00049863,120]
[356975409,1743512097213,-500.0,0.00049863,120]
[356975410,1743512097273,-500.0,0.00049863,120]
[356975411,1743512097332,-500.0,0.00049863,120]
[356975412,1743512097391,-500.0,0.00049863,120]
[356975413,1743512097449,-500.0,0.00049863,120]
[356975414,1743512097506,-500.0,0.00049863,120]
[356975415,1743512097563,-500.0,0.00049863,120]
[356975416,1743512097625,-500.0,0.00049863,120]
[356975417,1743512097682,-500.0,0.00049863,120]
[356975418,1743512097737,-500.0,0.00049863,120]
[356975419,1743512097792,-151.0,0.0004987,120]
[356975420,1743512097846,-290.895825,0.0004987,120]
[356975421,1743512098028,-151.606218,0.0004987,120]
[356975422,1743512098088,-151.0,0.0004987,120]
[356975423,1743512098148,-151.0,0.0004987,120]
[356975424,1743512098212,-151.0,0.0004987,120]
[356975425,1743512098271,-642.37367068,0.00049945,120]
[356975426,1743512098331,-500.0,0.00049945,120]
[356975427,1743512098390,-500.0,0.00049945,120]
[356975428,1743512098450,-500.0,0.00049945,120]
[356975429,1743512098508,-500.0,0.00049945,120]
[356975430,1743512098568,-500.0,0.00049945,120]
[356975431,1743512098626,-500.0,0.00049945,120]
[356975432,1743512098685,-500.0,0.00049945,120]
[356975433,1743512098750,-500.0,0.00049945,120]
[356975434,1743512098808,-500.0,0.00049945,120]
[356975435,1743512098866,-224.7872441,0.00049945,120]
[356975436,1743512098924,-500.0,0.00049945,120]
[356975437,1743512098982,-500.0,0.00049945,120]
[356975438,1743512099151,-500.0,0.00049945,120]
[356975439,1743512099215,-500.0,0.00049945,120]
[356975440,1743512099275,-500.0,0.00049945,120]
[356975441,1743512099336,-500.0,0.00049945,120]
[356975442,1743512099396,-500.0,0.00049945,120]
[356975443,1743512099454,-500.0,0.00049945,120]
[356975444,1743512099512,-520.53,0.00049945,120]
[356975445,1743512099569,-500.0,0.00049945,120]
[356975446,1743512099625,-500.0,0.00049945,120]
[356975447,1743512099682,-1556.44,0.00049945,120]
[356975448,1743512099741,-500.0,0.00049945,120]
[356975449,1743512099798,-150.0,0.00049999,120]
[356975450,1743512099853,-150.0,0.00049999,120]
[356975451,1743512099910,-1000000.0,0.0005,120]
[356975452,1743512099964,-151.0,0.0005,120]
[356975453,1743512100021,-151.0,0.0005,120]
[356975454,1743512100081,-151.0,0.0005,120]
[356975455,1743512100250,-151.0,0.0005,120]
[356975456,1743512100307,-151.0,0.0005,120]
[356975457,1743512100367,-2307.918016,0.0005,120]
[356975458,1743512100429,-2307.918016,0.0005,120]
[356975459,1743512100487,-226.580916,0.0005,120]
[356975460,1743512100544,-151.0,0.0005,120]
[356975461,1743512100602,-151.0,0.0005,120]
[356975462,1743512100875,500.0,0.00049315,120]
[356975463,1743512100961,500.0,0.00049589,120]
[356975464,1743512101030,500.0,0.00049315,120]
[356975465,1743512101095,500.0,0.00049863,120]
[356975466,1743512101170,500.0,0.00049589,120]
[356975467,1743512101247,500.0,0.00049863,120]
[356975468,1743512101566,150.0,0.0005,120]
[356975469,1743512101787,200.0,0.0005,120]
[356975470,1743512102741,500.0,0.00049397,120]
[356975471,1743512102811,500.0,0.00049671,120]
[356975472,1743512102892,500.0,0.00049945,120]
[356975473,1743512103023,500.0,0.00049397,120]
[356975474,1743512103103,500.0,0.00049671,120]
[356975475,1743512103181,500.0,0.00049945,120]
[356975476,1743512103321,500.0,0.00049315,120]
[356975477,1743512103395,500.0,0.00049589,120]
[356975478,1743512103480,500.0,0.00049863,120]
[356975479,1743512103551,500.0,0.00049397,120]
[356975480,1743512103776,500.0,0.00049671,120]
[356975481,1743512103858,500.0,0.00049945,120]
[356975482,1743512104263,500.0,0.00049397,120]
[356975483,1743512104343,500.0,0.00049671,120]
[356975484,1743512104414,486.46194737,0.00049945,120]
[356975485,1743512104935,500.0,0.00049315,120]
[356975486,1743512105005,500.0,0.00049589,120]
[356975487,1743512105074,500.0,0.00049863,120]
[356975488,1743512105447,5000.0,0.000494,120]
[356975489,1743512105822,150.0,0.0005,120]
[356975490,1743512106219,3649.57,0.00049315,120]
[356975491,1743512106598,3649.57,0.00049589,120]
[356975492,1743512106727,3649.57,0.00049863,120]
[356975493,1743512107915,500.0,0.00049397,120]
[356975494,1743512108047,150.0,0.0005,120]
[356975495,1743512108167,500.0,0.00049671,120]
[356975496,1743512113288,500.0,0.00049397,120]
[356975497,1743512113506,500.0,0.00049671,120]
[356975498,1743512116173,500.0,0.00049397,120]
[356975499,1743512116481,500.0,0.00049671,120]
[356975500,1743512117669,500.0,0.00049397,120]
[356975501,1743512117893,500.0,0.00049671,120]
[356975502,1743512118135,415.76542774,0.00049945,120]
[356975503,1743512121158,500.0,0.00049315,120]
[356975504,1743512121456,500.0,0.00049589,120]
[356975505,1743512123159,500.0,0.00049397,120]
[356975506,1743512123398,500.0,0.00049671,120]
[356975507,1743512123619,500.0,0.00049945,120]
[356975508,1743512125525,500.0,0.00049397,120]
[356975509,1743512125764,500.0,0.00049671,120]
[356975510,1743512126000,500.0,0.00049945,120]
[356975511,1743512127070,500.0,0.00049397,120]
[356975512,1743512127654,500.0,0.00049671,120]
[356975513,1743512127886,500.0,0.00049945,120]
[356975514,1743512129667,3215.81165641,0.0005,120]
[356975515,1743512129735,500.0,0.00049397,120]
[356975516,1743512130291,500.0,0.00049671,120]
[356975517,1743512130646,500.0,0.00049945,120]
[356975518,1743512130875,500.0,0.00049315,120]
[356975519,1743512131222,500.0,0.00049589,120]
[356975520,1743512132948,500.0,0.00049315,120]
[356975521,1743512133227,500.0,0.00049589,120]
[356975522,1743512139038,500.0,0.00049315,120]
[356975523,1743512139276,500.0,0.00049589,120]
[356975524,1743512141567,500.0,0.00049315,120]
[356975525,1743512141814,506.67360121,0.00049589,120]
[356975610,1743512268273,1657.10178368,0.00034144,120]
[356975620,1743512598209,551.58467389,0.00034138,120]
[356975621,1743512607031,464.15163805,0.00034138,120]
[356975628,1743513031611,-150.66,0.00026849,2]
[356975629,1743513031621,-246.35,0.00028,2]
[356975630,1743513031630,-56.5879686,0.000329,30]
[356975631,1743513031667,-450.43262705,0.000329,30]
[356975632,1743513031679,-46.06001067,0.000329,30]
[356975633,1743513031688,-157.5,0.00034,2]
[356975634,1743513031697,-3796.86528468,0.000356,7]
[356975635,1743513031724,-392.91999999,0.000356,7]
[356975636,1743513031734,-722.252417,0.000356,7]
[356975637,1743513031781,-3217.60282194,0.000356,7]
[356975666,1743513045148,-53870.35947639,0.000356,7]
[356975667,1743513045158,-1431.72601739,0.00035927,2]
[356975668,1743513045167,-150.66,0.00036027,2]
[356975669,1743513045177,-350.0,0.00037558,12]
[356975670,1743513045186,-500.0,0.00038373,2]
[356975671,1743513045195,-206.37011108,0.00038373,5]
[356975672,1743513045204,-179.77,0.0003839,3]
[356975673,1743513045214,-539.32,0.0003839,3]
[356975674,1743513045223,-2800.37407409,0.0003839,3]
[356975675,1743513045233,-224.68433452,0.00038399,15]
[356975676,1743513045242,-252.71502824,0.00038399,15]
[356975677,1743513045251,-411.86041304,0.00038399,15]
[356975678,1743513045260,-286.32073516,0.00038399,15]
[356975679,1743513045270,-259116.02087692,0.000384,33]
[356975680,1743513045279,-190.77513726,0.0003966,18]
[356975681,1743513045288,-359.54,0.0003976,3]
[356975682,1743513045298,-2800.37407409,0.00040956,3]
[356975683,1743513045307,-301.83,0.00040966,2]
[356975684,1743513045316,-443.79,0.00040966,2]
[356975685,1743513045325,-444.31,0.00040966,2]
[356975686,1743513045335,-444.31,0.00040966,2]
[356975687,1743513045344,-255.09,0.00040966,2]
[356975688,1743513045353,-350.0,0.00041314,12]
[356975689,1743513045363,-5600.74814818,0.0004199,3]
[356975690,1743513045373,-395.41,0.00042,120]
[356975691,1743513045382,-11768.23,0.00042,120]
[356975692,1743513045391,-150.0,0.00042,30]
[356975693,1743513045400,-451.4,0.0004234,2]
[356975694,1743513045409,-350.0,0.00042779,12]
[356975695,1743513045419,-150.0,0.0004312,2]
[356975696,1743513045429,-150.0,0.00044578,2]
[356975697,1743513045439,-2800.37407409,0.00045195,3]
[356975698,1743513045448,-150.66,0.00045205,2]
[356975699,1743513045457,-150.0,0.00046037,2]
[356975700,1743513045467,-444.41,0.000462,30]
[356975701,1743513045476,-150.0,0.000462,30]
[356975702,1743513045485,-633.82,0.00046228,2]
[356975703,1743513045495,-885.18,0.000463,30]
[356975704,1743513045505,-692.54,0.000463,30]
[356975705,1743513045519,-150.0,0.000463,30]
[356975706,1743513045528,-150.0,0.00047496,2]
[356975707,1743513045538,-882.19,0.00048041,30]
[356975708,1743513045547,-941.64,0.00048041,30]
[356975709,1743513045558,-154.03,0.00048119,2]
[356975710,1743513045567,-1000.0,0.00048119,2]
[356975711,1743513045576,-250.0,0.00048127,120]
[356975712,1743513045586,-189.13,0.00048221,2]
[356975713,1743513045596,-200.0,0.00048394,2]
[356975714,1743513045606,-2800.37407409,0.00048396,4]
[356975715,1743513045714,-619.4273984,0.00048406,4]
[356975716,1743513045724,-200.0,0.00048409,2]
[356975717,1743513045733,-276.1,0.00048409,2]
[356975718,1743513045743,-150.46,0.00048451,120]
[356975719,1743513045754,-189.13,0.00048462,2]
[356975720,1743513045764,-633.82,0.00048492,2]
[356975721,1743513045774,-1644.82625769,0.0004879,4]
[356975722,1743513045786,-866.0290015,0.0004879,4]
[356975723,1743513045798,-289.5188149,0.0004879,4]
[356975724,1743513045808,-469.9405751,0.000488,2]
[356975725,1743513045821,-1056.39,0.000488,2]
[356975726,1743513045834,-473.6694249,0.000488,2]
[356975727,1743513045844,-260.84323295,0.000489,17]
[356975728,1743513045896,-392.78813176,0.00035926,15]
[356975729,1743513045906,-218.7,0.00035926,15]
[356975730,1743513045916,-139.15676705,0.000489,17]
[356975731,1743513045926,-335.94770199,0.000489,15]
[356975732,1743513045938,-2384.23918442,0.000489,15]
[356975733,1743513045948,-150.0,0.00048955,2]
[356975734,1743513045958,-2800.37407409,0.0004899,4]
[356975735,1743513045969,-694.42,0.00049,30]
[356975736,1743513045979,-887.46,0.00049,30]
[356975737,1743513045989,-292.24060474,0.00049,30]
[356975738,1743513046003,-7.75939526,0.00049,30]
[356975739,1743513046014,-300.0,0.00049,30]
[356975740,1743513046025,-900.0,0.00049,20]
[356975741,1743513046036,-203.95408008,0.00049,7]
[356975742,1743513046049,-372.96495943,0.00049,7]
[356975743,1743513046058,-653.76529031,0.00049011,15]
[356975744,1743513046069,-640.54032554,0.00049011,15]
[356975745,1743513046081,-819.33484271,0.00049011,15]
[356975746,1743513046093,-606.54642785,0.00049011,15]
[356975747,1743513046104,-2720.18688641,0.00049122,15]
[356975748,1743513046114,-2800.37407409,0.00049205,4]
[356975749,1743513046123,-740.6037,0.00049215,2]
[356975750,1743513046133,-468.5505531,0.00049215,2]
[356975751,1743513046145,-762.17542217,0.00049215,2]
[356975752,1743513046157,-440.98292473,0.00049215,2]
[356975753,1743513046166,-268.3202,0.00049215,2]
[356975754,1743513046176,-482.05687527,0.00049233,15]
[356975755,1743513046534,-2238.13001114,0.00049233,15]
[356975756,1743513046545,-4249.07184875,0.00049287,4]
[356975757,1743513046556,-570.13742456,0.00049287,4]
[356975758,1743513046572,-781.53887487,0.00049287,4]
[356975759,1743513046582,-1433.2756,0.00049289,2]
[356975760,1743513046595,-1298.8126,0.00049289,2]
[356975761,1743513046606,-191.6396,0.00049289,2]
[356975762,1743513046615,-1499.2643,0.00049289,2]
[356975763,1743513046627,-190.8924,0.00049289,2]
[356975764,1743513046636,-8850.88722836,0.0004929,4]
[356975765,1743513046648,-13552.10536434,0.0004929,4]
[356975766,1743513046658,-223.0,0.00049297,2]
[356975767,1743513046667,-5264.2823,0.00049297,2]
[356975768,1743513046678,-189.577,0.00049297,86]
[356975769,1743513046687,-27920.85627565,0.000493,2]
[356975770,1743513046698,-8626.75042062,0.000493,2]
[356975771,1743513046707,-2000.0,0.000493,2]
[356975772,1743513046717,-2800.37407409,0.00049304,4]
[356975773,1743513046726,-3610.21970529,0.00049305,4]
[356975774,1743513046737,-474.991,0.00049305,4]
[356975775,1743513046752,-5390.68405097,0.00049305,4]
[356975776,1743513046881,-3127.07,0.00045878,2]
[356975777,1743513046890,-26225.00641814,0.00049305,4]
[356975778,1743513046902,-703.9617888,0.00049305,4]
[356975779,1743513046911,-400.0,0.00049314,120]
[356975780,1743513046921,-500.0,0.00049315,120]
[356975781,1743513046931,-500.0,0.00049315,120]
[356975782,1743513046940,-237.54636774,0.00049315,120]
[356975783,1743513046950,-500.0,0.00049315,120]
[356975784,1743513046960,-1432.61,0.00049315,2]
[356975785,1743513046969,-500.0,0.00049315,120]
[356975786,1743513046979,-500.0,0.00049315,120]
[356975787,1743513046989,-348.65710834,0.00049315,120]
[356975788,1743513046999,-500.0,0.00049315,120]
[356975789,1743513047008,-500.0,0.00049315,120]
[356975790,1743513047018,-500.0,0.00049315,120]
[356975791,1743513047027,-38.75462179,0.00049315,60]
[356975792,1743513047039,-461.24537821,0.00049315,60]
[356975793,1743513047048,-500.0,0.00049315,120]
[356975794,1743513047057,-500.0,0.00049315,120]
[356975795,1743513047067,-500.0,0.00049315,120]
[356975796,1743513047076,-565.33565492,0.00049315,120]
[356975797,1743513047086,-500.0,0.00049315,120]
[356975798,1743513047096,-300.0,0.00049315,120]
[356975799,1743513047106,-500.0,0.00049315,120]
[356975800,1743513047115,-500.0,0.00049315,120]
[356975801,1743513047124,-500.0,0.00049315,120]
[356975802,1743513047134,-500.0,0.00049315,120]
[356975803,1743513047143,-500.0,0.00049315,120]
[356975804,1743513047153,-500.0,0.00049315,120]
[356975805,1743513047162,-500.0,0.00049315,120]
[356975806,1743513047172,-500.0,0.00049315,120]
[356975807,1743513047182,-500.0,0.00049315,120]
[356975808,1743513047191,-407.84151555,0.00049315,120]
[356975809,1743513047200,-293.07536327,0.00049315,120]
[356975810,1743513047210,-210.31321725,0.00049315,120]
[356975811,1743513047222,-289.68678275,0.00049315,120]
[356975812,1743513047231,-394.47957045,0.00049315,120]
[356975813,1743513047242,-105.52042955,0.00049315,120]
[356975814,1743513047252,-500.0,0.00049315,120]
[356975815,1743513047262,-500.0,0.00049315,120]
[356975816,1743513047273,-500.0,0.00049315,120]
[356975817,1743513047282,-500.0,0.00049315,120]
[356975818,1743513047291,-301.63048045,0.00049315,120]
[356975819,1743513047303,-270.00005,0.00049315,120]
[356975820,1743513047315,-302.64946955,0.00049315,120]
[356975821,1743513047325,-228.04312882,0.00049315,120]
[356975822,1743513047352,-271.95687118,0.00049315,120]
[356975823,1743513047362,-205.13530358,0.00049315,120]
[356975824,1743513047373,-500.0,0.00049315,120]
[356975825,1743513047383,-500.0,0.00049315,120]
[356975826,1743513047392,-500.0,0.00049315,120]
[356975827,1743513047402,-500.0,0.00049315,120]
[356975828,1743513047411,-500.0,0.00049315,120]
[356975829,1743513047421,-500.0,0.00049315,120]
[356975830,1743513047431,-500.0,0.00049315,120]
[356975831,1743513047441,-500.0,0.00049315,120]
[356975832,1743513047451,-150.41918448,0.00049315,120]
[356975833,1743513047462,-500.0,0.00049315,120]
[356975834,1743513047472,-500.0,0.00049315,120]
[356975835,1743513047482,-500.0,0.00049315,120]
[356975836,1743513047491,-500.0,0.00049315,120]
[356975837,1743513047501,-118.05349698,0.00049315,120]
[356975838,1743513047639,-381.94650302,0.00049315,120]
[356975839,1743513047651,-500.0,0.00049315,120]
[356975840,1743513047661,-266.80347835,0.00049315,120]
[356975841,1743513047674,-27.46621759,0.00049315,120]
[356975842,1743513047684,-500.0,0.00049315,120]
[356975843,1743513047695,-536.10423425,0.00049315,120]
[356975844,1743513047705,-502.65,0.00049315,120]
[356975845,1743513047719,-500.0,0.00049315,120]
[356975846,1743513047736,-500.0,0.00049315,120]
[356975847,1743513047746,-500.0,0.00049315,120]
[356975848,1743513047756,-500.0,0.00049315,120]
[356975849,1743513047765,-500.0,0.00049315,120]
[356975850,1743513047775,-500.0,0.00049315,120]
[356975851,1743513047784,-249.75554816,0.00049315,120]
[356975852,1743513047796,-250.24445184,0.00049315,120]
[356975853,1743513047806,-500.0,0.00049315,120]
[356975854,1743513047815,-500.0,0.00049315,120]
[356975855,1743513047825,-500.0,0.00049315,120]
[356975856,1743513047834,-237.74249721,0.00049315,120]
[356975857,1743513047846,-874.13750279,0.00049315,120]
[356975858,1743513047856,-500.0,0.00049315,120]
[356975859,1743513047865,-500.0,0.00049315,120]
[356975860,1743513047875,-500.0,0.00049315,120]
[356975861,1743513047884,-500.0,0.00049315,120]
[356975862,1743513047894,-315.18523792,0.00049315,120]
[356975863,1743513047905,-184.81476208,0.00049315,120]
[356975864,1743513047915,-233.73313495,0.00049315,120]
[356975865,1743513048026,-266.26686505,0.00049315,120]
[356975866,1743513048036,-362.01468516,0.00049315,120]
[356975867,1743513048048,-137.98531484,0.00049315,120]
[356975868,1743513048057,-3193.37,0.00049315,120]
[356975869,1743513048067,-500.0,0.00049315,120]
[356975870,1743513048076,-500.0,0.00049315,120]
[356975871,1743513048086,-500.0,0.00049315,120]
[356975872,1743513048096,-500.0,0.00049315,120]
[356975873,1743513048107,-500.0,0.00049315,120]
[356975874,1743513048116,-282.10902045,0.00049315,120]
[356975875,1743513048804,-217.89097955,0.00049315,120]
[356975876,1743513048814,-500.0,0.00049315,120]
[356975877,1743513048824,-500.0,0.00049315,120]
[356975878,1743513048834,-500.0,0.00049315,120]
[356975879,1743513048844,-143.69802046,0.00049315,120]
[356975880,1743513048857,-356.30197954,0.00049315,120]
[356975881,1743513048867,-130.54191785,0.00049315,120]
[356975882,1743513048890,-1.40711335,0.00049315,120]
[356975883,1743513048901,-368.0509688,0.00049315,120]
[356975884,1743513048911,-500.0,0.00049315,120]
[356975885,1743513048920,-500.0,0.00049315,120]
[356975886,1743513048930,-500.0,0.00049315,120]
[356975887,1743513048939,-500.0,0.00049315,120]
[356975888,1743513048948,-500.0,0.00049315,120]
[356975889,1743513048958,-500.0,0.00049315,120]
[356975890,1743513048968,-500.0,0.00049315,120]
[356975891,1743513048977,-500.0,0.00049315,120]
[356975892,1743513048987,-500.0,0.00049315,120]
[356975893,1743513048996,-500.0,0.00049315,120]
[356975894,1743513049005,-500.0,0.00049315,120]
[356975895,1743513049015,-500.0,0.00049315,120]
[356975896,1743513049024,-1468.26,0.00049315,120]
[356975897,1743513049033,-500.0,0.00049315,120]
[356975898,1743513049043,-500.0,0.00049315,120]
[356975899,1743513049054,-500.0,0.00049315,120]
[356975900,1743513049063,-500.0,0.00049315,120]
[356975901,1743513049073,-500.0,0.00049315,120]
[356975902,1743513049083,-500.0,0.00049315,120]